[Event "Early-Titled-Tuesday-Blitz-August-29-2023"]
[Site "Chess.com"]
[Date "2023.08.29"]
[Round "10"]
[White "Alphafischer2019"]
[Black "gm_rashid"]
[Result "0-1"]
[WhiteElo "2503"]
[BlackElo "2392"]
[TimeControl "180+1"]
[EndTime "9:54:45 PDT"]
[Termination "gm_rashid won by checkmate"]

1. Nf3 {[%clk 0:03:00.1]} 1... Nf6 {[%clk 0:03:00.3]} 2. g3 {[%clk 0:02:59.9]}
2... g6 {[%clk 0:03:00.5]} 3. Bg2 {[%clk 0:02:59.4]} 3... Bg7 {[%clk 0:03:00.8]}
4. O-O {[%clk 0:02:59.3]} 4... O-O {[%clk 0:03:01.3]} 5. b3 {[%clk 0:02:59.5]}
5... d6 {[%clk 0:03:00.9]} 6. Bb2 {[%clk 0:02:59.5]} 6... Nc6 {[%clk 0:03:00.7]}
7. d4 {[%clk 0:02:58.8]} 7... e5 {[%clk 0:02:59.8]} 8. dxe5 {[%clk 0:02:55.5]}
8... Ng4 {[%clk 0:02:59.9]} 9. c4 {[%clk 0:02:53.4]} 9... dxe5 {[%clk
0:02:58.8]} 10. h3 {[%clk 0:01:49.2]} 10... Nh6 {[%clk 0:02:57.3]} 11. Qc1
{[%clk 0:01:38.7]} 11... f5 {[%clk 0:02:54]} 12. Rd1 {[%clk 0:01:34.3]} 12...
Qf6 {[%clk 0:02:47.5]} 13. Na3 {[%clk 0:01:22.7]} 13... a6 {[%clk 0:02:43.4]}
14. c5 {[%clk 0:01:20.2]} 14... Nf7 {[%clk 0:02:38.7]} 15. Nc4 {[%clk
0:01:19.2]} 15... Be6 {[%clk 0:02:37.5]} 16. Qc2 {[%clk 0:00:56.9]} 16... Rad8
{[%clk 0:02:32.9]} 17. Rxd8 {[%clk 0:00:55.3]} 17... Rxd8 {[%clk 0:02:32.7]} 18.
Rd1 {[%clk 0:00:51.4]} 18... Nb4 {[%clk 0:02:15.5]} 19. Rxd8+ {[%clk 0:00:47]}
19... Qxd8 {[%clk 0:02:15.8]} 20. Qb1 {[%clk 0:00:45.1]} 20... e4 {[%clk
0:02:09.9]} 21. Nfe5 {[%clk 0:00:37.5]} 21... Bxc4 {[%clk 0:01:30.9]} 22. Nxc4
{[%clk 0:00:34.6]} 22... Bxb2 {[%clk 0:01:30.6]} 23. Qxb2 {[%clk 0:00:34.4]}
23... Qd1+ {[%clk 0:01:29.9]} 24. Bf1 {[%clk 0:00:33.1]} 24... Qd5 {[%clk
0:01:21.5]} 25. a3 {[%clk 0:00:29.1]} 25... Nc6 {[%clk 0:01:20.2]} 26. e3 {[%clk
0:00:21.9]} 26... Qxc5 {[%clk 0:01:18.6]} 27. b4 {[%clk 0:00:22.5]} 27... Qd5
{[%clk 0:01:17]} 28. a4 {[%clk 0:00:17.7]} 28... Nfe5 {[%clk 0:01:15.3]} 29.
Nxe5 {[%clk 0:00:14.3]} 29... Nxe5 {[%clk 0:01:15.4]} 30. Qc3 {[%clk 0:00:12.7]}
30... c6 {[%clk 0:01:12]} 31. Kg2 {[%clk 0:00:11.5]} 31... b5 {[%clk 0:00:58.1]}
32. axb5 {[%clk 0:00:11.3]} 32... axb5 {[%clk 0:00:58.3]} 33. Qa3 {[%clk
0:00:10.9]} 33... Qd7 {[%clk 0:00:51.3]} 34. Qa8+ {[%clk 0:00:10.1]} 34... Kg7
{[%clk 0:00:50]} 35. Qb8 {[%clk 0:00:09.7]} 35... Nd3 {[%clk 0:00:46.5]} 36. h4
{[%clk 0:00:05.6]} 36... Qe7 {[%clk 0:00:28.1]} 37. Qc8 {[%clk 0:00:04.5]} 37...
Nxb4 {[%clk 0:00:25.5]} 38. Be2 {[%clk 0:00:05.1]} 38... Nd3 {[%clk 0:00:19]}
39. Qxc6 {[%clk 0:00:03.6]} 39... b4 {[%clk 0:00:15.1]} 40. Bxd3 {[%clk
0:00:02.4]} 40... exd3 {[%clk 0:00:15.5]} 41. Qb5 {[%clk 0:00:02.7]} 41... Qe4+
{[%clk 0:00:15.5]} 42. f3 {[%clk 0:00:02.5]} 42... Qxe3 {[%clk 0:00:14.1]} 43.
Qxb4 {[%clk 0:00:03.2]} 43... d2 {[%clk 0:00:12.6]} 44. Qb7+ {[%clk 0:00:02]}
44... Kf6 {[%clk 0:00:12]} 45. Qc6+ {[%clk 0:00:02.3]} 45... Ke5 {[%clk
0:00:10.1]} 46. f4+ {[%clk 0:00:02.3]} 46... Kd4 {[%clk 0:00:09.7]} 47. Qb6+
{[%clk 0:00:02.9]} 47... Kd3 {[%clk 0:00:09.7]} 48. Qb5+ {[%clk 0:00:03.5]}
48... Kc2 {[%clk 0:00:09.6]} 49. Qc4+ {[%clk 0:00:03.6]} 49... Qc3 {[%clk
0:00:08.9]} 50. Qe2 {[%clk 0:00:03.1]} 50... Qc6+ {[%clk 0:00:06.7]} 51. Kh2
{[%clk 0:00:02.7]} 51... Qe4 {[%clk 0:00:07.3]} 52. Qf2 {[%clk 0:00:02.2]} 52...
Kc1 {[%clk 0:00:05.1]} 53. Qc5+ {[%clk 0:00:02.9]} 53... Qc2 {[%clk 0:00:05.2]}
54. Qe3 {[%clk 0:00:03.6]} 54... Kb2 {[%clk 0:00:03.9]} 55. Qb6+ {[%clk
0:00:03.7]} 55... Qb3 {[%clk 0:00:04]} 56. Qd4+ {[%clk 0:00:03.9]} 56... Kc2
{[%clk 0:00:04.4]} 57. Qf2 {[%clk 0:00:03.7]} 57... Qd3 {[%clk 0:00:04.4]} 58.
Qc5+ {[%clk 0:00:03.9]} 58... Kd1 {[%clk 0:00:04.8]} 59. Qg1+ {[%clk 0:00:04]}
59... Kc2 {[%clk 0:00:04.7]} 60. Qc5+ {[%clk 0:00:04.3]} 60... Qc3 {[%clk
0:00:05.4]} 61. Qf2 {[%clk 0:00:04.3]} 61... Kc1 {[%clk 0:00:05.4]} 62. Qf1+
{[%clk 0:00:01.8]} 62... d1=Q {[%clk 0:00:05.8]} 63. Qe2 {[%clk 0:00:02.7]}
63... Qxe2+ {[%clk 0:00:05.9]} 64. Kh3 {[%clk 0:00:03.6]} 64... Qce1 {[%clk
0:00:06.8]} 65. g4 {[%clk 0:00:03.9]} 65... Qxg4+ {[%clk 0:00:07.7]} 66. Kh2
{[%clk 0:00:04]} 66... Qeg3+ {[%clk 0:00:08.6]} 67. Kh1 {[%clk 0:00:04.6]} 67...
Q3xh4# {[%clk 0:00:09.5]} 0-1

[Event "Early-Titled-Tuesday-Blitz-August-29-2023"]
[Site "Chess.com"]
[Date "2023.08.29"]
[Round "10"]
[White "Angry_Twin"]
[Black "Bauman_Guy"]
[Result "0-1"]
[WhiteElo "2944"]
[BlackElo "2831"]
[TimeControl "180+1"]
[EndTime "9:54:49 PDT"]
[Termination "Bauman_Guy won on time"]

1. d4 {[%clk 0:02:59.4]} 1... Nf6 {[%clk 0:02:55.1]} 2. c4 {[%clk 0:02:59.3]}
2... b6 {[%clk 0:02:55.1]} 3. Nf3 {[%clk 0:02:58]} 3... Bb7 {[%clk 0:02:55]} 4.
g3 {[%clk 0:02:58.8]} 4... g6 {[%clk 0:02:54.8]} 5. Bg2 {[%clk 0:02:59.3]} 5...
Bg7 {[%clk 0:02:55.7]} 6. O-O {[%clk 0:02:59.7]} 6... O-O {[%clk 0:02:55.8]} 7.
d5 {[%clk 0:03:00.4]} 7... e6 {[%clk 0:02:55.6]} 8. Nc3 {[%clk 0:03:00.1]} 8...
a5 {[%clk 0:02:55.7]} 9. Nd4 {[%clk 0:02:59.7]} 9... e5 {[%clk 0:02:53.7]} 10.
Nc2 {[%clk 0:02:58.4]} 10... d6 {[%clk 0:02:52.7]} 11. e4 {[%clk 0:02:52.4]}
11... Nbd7 {[%clk 0:02:52.8]} 12. b3 {[%clk 0:02:51.6]} 12... Nc5 {[%clk
0:02:52.6]} 13. Rb1 {[%clk 0:02:50]} 13... Bc8 {[%clk 0:02:42.4]} 14. h3 {[%clk
0:02:39.2]} 14... Bd7 {[%clk 0:02:35.7]} 15. Be3 {[%clk 0:02:37.8]} 15... Ne8
{[%clk 0:02:29.3]} 16. Qd2 {[%clk 0:02:32.8]} 16... f5 {[%clk 0:02:29.3]} 17.
exf5 {[%clk 0:02:32.3]} 17... Bxf5 {[%clk 0:02:27.1]} 18. Bxc5 {[%clk
0:02:26.1]} 18... bxc5 {[%clk 0:02:28]} 19. Rbe1 {[%clk 0:02:20.2]} 19... Nf6
{[%clk 0:02:25.6]} 20. Ne3 {[%clk 0:02:20.3]} 20... Bd7 {[%clk 0:02:24]} 21. Kh2
{[%clk 0:02:17.1]} 21... a4 {[%clk 0:02:22.9]} 22. Qc2 {[%clk 0:02:16.7]} 22...
axb3 {[%clk 0:02:22.3]} 23. axb3 {[%clk 0:02:17.2]} 23... Ra5 {[%clk 0:02:17.5]}
24. Ra1 {[%clk 0:02:08.8]} 24... Qa8 {[%clk 0:02:16.9]} 25. Rxa5 {[%clk
0:02:09.2]} 25... Qxa5 {[%clk 0:02:17.8]} 26. Ne4 {[%clk 0:02:08.3]} 26... Nxe4
{[%clk 0:02:05.8]} 27. Bxe4 {[%clk 0:02:08]} 27... Bh6 {[%clk 0:02:02.2]} 28.
Ng4 {[%clk 0:01:28.8]} 28... Qd2 {[%clk 0:01:47.5]} 29. Nxh6+ {[%clk 0:01:09.1]}
29... Qxh6 {[%clk 0:01:48.4]} 30. Bg2 {[%clk 0:01:08.7]} 30... Ra8 {[%clk
0:01:33.1]} 31. f4 {[%clk 0:00:52.3]} 31... Bf5 {[%clk 0:01:31.9]} 32. Qb2
{[%clk 0:00:50.2]} 32... exf4 {[%clk 0:01:27.3]} 33. Rxf4 {[%clk 0:00:48]} 33...
Qg7 {[%clk 0:01:26.9]} 34. Rf2 {[%clk 0:00:39.1]} 34... Qd4 {[%clk 0:00:49.2]}
35. Qxd4 {[%clk 0:00:34]} 35... cxd4 {[%clk 0:00:50.1]} 36. Rd2 {[%clk
0:00:34.4]} 36... Ra3 {[%clk 0:00:48.8]} 37. g4 {[%clk 0:00:30.8]} 37... Bd7
{[%clk 0:00:45.1]} 38. b4 {[%clk 0:00:29.3]} 38... Rc3 {[%clk 0:00:26.3]} 39.
Rxd4 {[%clk 0:00:28.6]} 39... Ba4 {[%clk 0:00:25]} 40. Bf1 {[%clk 0:00:24.8]}
40... g5 {[%clk 0:00:24.9]} 41. Re4 {[%clk 0:00:24.6]} 41... Kf7 {[%clk
0:00:25]} 42. Kg2 {[%clk 0:00:17.5]} 42... Bc2 {[%clk 0:00:23.6]} 43. Rd4 {[%clk
0:00:17.8]} 43... Kf6 {[%clk 0:00:23.1]} 44. Rd2 {[%clk 0:00:14.8]} 44... Be4+
{[%clk 0:00:22.4]} 45. Kf2 {[%clk 0:00:14.3]} 45... Ke5 {[%clk 0:00:22.9]} 46.
Ra2 {[%clk 0:00:13.1]} 46... Kf4 {[%clk 0:00:15.6]} 47. Rd2 {[%clk 0:00:08.3]}
47... h6 {[%clk 0:00:15.6]} 48. Ra2 {[%clk 0:00:08]} 48... Bf3 {[%clk
0:00:14.8]} 49. Rd2 {[%clk 0:00:07.7]} 49... Be4 {[%clk 0:00:13.9]} 50. Rb2
{[%clk 0:00:07.1]} 50... Bc2 {[%clk 0:00:12.8]} 51. Be2 {[%clk 0:00:06.1]} 51...
Bb3 {[%clk 0:00:12.7]} 52. b5 {[%clk 0:00:03.4]} 52... Bxc4 {[%clk 0:00:12.4]}
53. Bxc4 {[%clk 0:00:03.7]} 53... Rxc4 {[%clk 0:00:13.3]} 54. b6 {[%clk
0:00:04.6]} 54... cxb6 {[%clk 0:00:12.9]} 55. Rxb6 {[%clk 0:00:05.5]} 55... Rc2+
{[%clk 0:00:13.2]} 56. Kg1 {[%clk 0:00:04.4]} 56... Ke5 {[%clk 0:00:14.1]} 57.
Rb7 {[%clk 0:00:04.4]} 57... Kxd5 {[%clk 0:00:13]} 58. Rh7 {[%clk 0:00:04.7]}
58... Ke4 {[%clk 0:00:13.4]} 59. Rxh6 {[%clk 0:00:04.9]} 59... d5 {[%clk
0:00:14]} 60. Re6+ {[%clk 0:00:04.8]} 60... Kf3 {[%clk 0:00:14.1]} 61. Re5
{[%clk 0:00:02.4]} 61... d4 {[%clk 0:00:14.4]} 62. Rxg5 {[%clk 0:00:01.9]} 62...
d3 {[%clk 0:00:14.9]} 63. Rd5 {[%clk 0:00:02.2]} 63... Ke3 {[%clk 0:00:14.9]}
64. g5 {[%clk 0:00:02.2]} 64... d2 {[%clk 0:00:14.4]} 65. h4 {[%clk 0:00:02.5]}
65... Rc4 {[%clk 0:00:14.6]} 66. Rxd2 {[%clk 0:00:01]} 66... Kxd2 {[%clk
0:00:15.5]} 67. Kf2 {[%clk 0:00:01.7]} 67... Rxh4 {[%clk 0:00:15.4]} 68. Kf3
{[%clk 0:00:02.3]} 68... Ra4 {[%clk 0:00:15.7]} 69. g6 {[%clk 0:00:02.7]} 69...
Ra6 {[%clk 0:00:15.9]} 70. g7 {[%clk 0:00:02.2]} 70... Rg6 {[%clk 0:00:16.4]}
0-1

[Event "Early-Titled-Tuesday-Blitz-August-29-2023"]
[Site "Chess.com"]
[Date "2023.08.29"]
[Round "10"]
[White "Sl4werThanYou"]
[Black "Fandorine"]
[Result "1-0"]
[WhiteElo "2762"]
[BlackElo "2939"]
[TimeControl "180+1"]
[EndTime "9:54:54 PDT"]
[Termination "Sl4werThanYou won by resignation"]

1. d4 {[%clk 0:03:00.9]} 1... Nf6 {[%clk 0:02:58.1]} 2. Nf3 {[%clk 0:03:00.3]}
2... g6 {[%clk 0:02:58.1]} 3. g3 {[%clk 0:02:57.1]} 3... Bg7 {[%clk 0:02:58.4]}
4. Bg2 {[%clk 0:02:58]} 4... O-O {[%clk 0:02:58.6]} 5. O-O {[%clk 0:02:58.7]}
5... d6 {[%clk 0:02:58.6]} 6. a4 {[%clk 0:02:59]} 6... a5 {[%clk 0:02:57.4]} 7.
Nc3 {[%clk 0:02:58.3]} 7... Nc6 {[%clk 0:02:57.1]} 8. e4 {[%clk 0:02:57.5]} 8...
Bg4 {[%clk 0:02:56.8]} 9. Be3 {[%clk 0:02:56.7]} 9... Nd7 {[%clk 0:02:55.9]} 10.
h3 {[%clk 0:02:51.2]} 10... Bxf3 {[%clk 0:02:55.6]} 11. Bxf3 {[%clk 0:02:52.1]}
11... e5 {[%clk 0:02:30.7]} 12. d5 {[%clk 0:02:52.1]} 12... Nb4 {[%clk
0:02:30.5]} 13. Bg2 {[%clk 0:02:42.9]} 13... f5 {[%clk 0:02:30.2]} 14. f4 {[%clk
0:02:32.3]} 14... exf4 {[%clk 0:02:25.9]} 15. Bxf4 {[%clk 0:02:31]} 15... Ne5
{[%clk 0:02:24.2]} 16. exf5 {[%clk 0:02:28.5]} 16... gxf5 {[%clk 0:02:16.4]} 17.
Qe2 {[%clk 0:02:16.9]} 17... Qd7 {[%clk 0:02:15.1]} 18. Nb5 {[%clk 0:02:15.3]}
18... Rae8 {[%clk 0:02:01.2]} 19. c3 {[%clk 0:02:15.7]} 19... Ned3 {[%clk
0:01:26.5]} 20. Qd2 {[%clk 0:02:13.9]} 20... Nxf4 {[%clk 0:01:26]} 21. Qxf4
{[%clk 0:02:04.3]} 21... Nd3 {[%clk 0:01:13.6]} 22. Qd2 {[%clk 0:02:00.2]} 22...
Nc5 {[%clk 0:01:10.9]} 23. Qc2 {[%clk 0:00:57.2]} 23... Re3 {[%clk 0:01:05]} 24.
Rf3 {[%clk 0:00:57.8]} 24... f4 {[%clk 0:00:58.3]} 25. Raf1 {[%clk 0:00:54.9]}
25... Rxf3 {[%clk 0:00:54.6]} 26. Rxf3 {[%clk 0:00:55.8]} 26... fxg3 {[%clk
0:00:53.5]} 27. Rxg3 {[%clk 0:00:56.7]} 27... Kh8 {[%clk 0:00:53.8]} 28. Nd4
{[%clk 0:00:49.9]} 28... Be5 {[%clk 0:00:51]} 29. Rg4 {[%clk 0:00:47.5]} 29...
Qf7 {[%clk 0:00:41.7]} 30. Ne6 {[%clk 0:00:43.5]} 30... Nxe6 {[%clk 0:00:36.9]}
31. dxe6 {[%clk 0:00:44.4]} 31... Qxe6 {[%clk 0:00:37.4]} 32. Bxb7 {[%clk
0:00:45.1]} 32... d5 {[%clk 0:00:20.3]} 33. Kg2 {[%clk 0:00:41.4]} 33... c6
{[%clk 0:00:14.2]} 34. Qe2 {[%clk 0:00:36.7]} 34... Re8 {[%clk 0:00:14]} 35. Rg5
{[%clk 0:00:34.7]} 35... Qf6 {[%clk 0:00:12.1]} 36. h4 {[%clk 0:00:32.5]} 36...
h6 {[%clk 0:00:07.6]} 37. Bxc6 {[%clk 0:00:32]} 37... hxg5 {[%clk 0:00:06.5]}
38. Qh5+ {[%clk 0:00:31.1]} 38... Kg7 {[%clk 0:00:05.5]} 39. Qxe8 {[%clk
0:00:32]} 39... gxh4 {[%clk 0:00:03.4]} 40. Qd7+ {[%clk 0:00:32.2]} 40... Kh6
{[%clk 0:00:03.6]} 41. Qxd5 {[%clk 0:00:26.7]} 41... Qg5+ {[%clk 0:00:03.4]} 42.
Kf1 {[%clk 0:00:27.5]} 42... Qf4+ {[%clk 0:00:03.6]} 43. Qf3 {[%clk 0:00:26.9]}
43... Qc1+ {[%clk 0:00:04.1]} 44. Kg2 {[%clk 0:00:26.6]} 44... Qd2+ {[%clk
0:00:03.9]} 45. Qf2 {[%clk 0:00:26.6]} 45... Qg5+ {[%clk 0:00:04.3]} 46. Kh3
{[%clk 0:00:25.4]} 46... Bf6 {[%clk 0:00:04.3]} 47. Be4 {[%clk 0:00:25]} 47...
Qe5 {[%clk 0:00:03.4]} 48. Qe3+ {[%clk 0:00:23.6]} 48... Bg5 {[%clk 0:00:03.3]}
49. Qf3 {[%clk 0:00:23.3]} 49... Kg7 {[%clk 0:00:02.2]} 50. b4 {[%clk
0:00:22.4]} 50... axb4 {[%clk 0:00:02.1]} 51. cxb4 {[%clk 0:00:23.3]} 51... Bf6
{[%clk 0:00:02.3]} 52. a5 {[%clk 0:00:23.4]} 52... Qa1 {[%clk 0:00:02.2]} 53.
Qg4+ {[%clk 0:00:23.2]} 53... Kf8 {[%clk 0:00:02.6]} 54. Qc8+ {[%clk 0:00:23.5]}
54... Kg7 {[%clk 0:00:02.8]} 55. Qd7+ {[%clk 0:00:24]} 55... Kh6 {[%clk
0:00:02.2]} 56. Qf5 {[%clk 0:00:23.9]} 56... Qc3+ {[%clk 0:00:01.5]} 57. Bf3
{[%clk 0:00:24.1]} 57... Kg7 {[%clk 0:00:02]} 58. Qg4+ {[%clk 0:00:23.3]} 58...
Kf8 {[%clk 0:00:02.2]} 59. a6 {[%clk 0:00:20.7]} 59... Qe3 {[%clk 0:00:02.6]}
60. Qf5 {[%clk 0:00:19.6]} 60... Kg7 {[%clk 0:00:02.4]} 61. Qg4+ {[%clk
0:00:19.8]} 61... Kf8 {[%clk 0:00:02.9]} 62. Qf5 {[%clk 0:00:20.5]} 62... Kg7
{[%clk 0:00:03.4]} 63. Qd7+ {[%clk 0:00:20.5]} 63... Kh6 {[%clk 0:00:03.6]} 64.
Qc6 {[%clk 0:00:20.1]} 64... Qe5 {[%clk 0:00:02.8]} 65. Kg2 {[%clk 0:00:17.5]}
65... Qg3+ {[%clk 0:00:02.4]} 66. Kf1 {[%clk 0:00:18.3]} 66... Kg5 {[%clk
0:00:02]} 67. Qd5+ {[%clk 0:00:18]} 67... Kh6 {[%clk 0:00:02.3]} 68. a7 {[%clk
0:00:16.3]} 68... Qh3+ {[%clk 0:00:02.5]} 69. Bg2 {[%clk 0:00:14.2]} 69... Qc8
{[%clk 0:00:03]} 70. a8=Q {[%clk 0:00:11]} 70... Qc1+ {[%clk 0:00:03.6]} 71. Kf2
{[%clk 0:00:11.7]} 71... Qb2+ {[%clk 0:00:03.6]} 72. Kf3 {[%clk 0:00:12]} 72...
Qc3+ {[%clk 0:00:03.4]} 73. Ke4 {[%clk 0:00:11.7]} 73... Qc2+ {[%clk 0:00:03.2]}
74. Ke3 {[%clk 0:00:10.6]} 74... Qc3+ {[%clk 0:00:03.3]} 75. Qd3 {[%clk
0:00:09.2]} 75... Qc1+ {[%clk 0:00:03.6]} 76. Ke2 {[%clk 0:00:09.2]} 76... Qb2+
{[%clk 0:00:03.2]} 77. Qd2+ {[%clk 0:00:09.2]} 1-0

[Event "Early-Titled-Tuesday-Blitz-August-29-2023"]
[Site "Chess.com"]
[Date "2023.08.29"]
[Round "10"]
[White "DawidCzerw"]
[Black "Aleksandar-Topalov"]
[Result "0-1"]
[WhiteElo "2481"]
[BlackElo "2377"]
[TimeControl "180+1"]
[EndTime "9:54:54 PDT"]
[Termination "Aleksandar-Topalov won by resignation"]

1. e4 {[%clk 0:03:00.9]} 1... e6 {[%clk 0:02:58.6]} 2. d4 {[%clk 0:03:01]} 2...
d5 {[%clk 0:02:58.5]} 3. Nc3 {[%clk 0:03:01.5]} 3... Bb4 {[%clk 0:02:58]} 4. e5
{[%clk 0:03:01.5]} 4... Qd7 {[%clk 0:02:58.2]} 5. Qg4 {[%clk 0:03:00.9]} 5...
Bf8 {[%clk 0:02:57.7]} 6. Nf3 {[%clk 0:02:58.7]} 6... b6 {[%clk 0:02:57.5]} 7.
a4 {[%clk 0:02:56.1]} 7... Ba6 {[%clk 0:02:56.4]} 8. Bb5 {[%clk 0:02:56]} 8...
c6 {[%clk 0:02:53.3]} 9. Bxa6 {[%clk 0:02:54.9]} 9... Nxa6 {[%clk 0:02:53.7]}
10. O-O {[%clk 0:02:55]} 10... Nb4 {[%clk 0:02:52.6]} 11. Ne1 {[%clk 0:02:52.7]}
11... a6 {[%clk 0:02:40.6]} 12. Ne2 {[%clk 0:02:48.7]} 12... c5 {[%clk
0:02:40.5]} 13. c3 {[%clk 0:02:47.1]} 13... Nc6 {[%clk 0:02:40.6]} 14. f4 {[%clk
0:02:47.3]} 14... h5 {[%clk 0:02:40.2]} 15. Qh3 {[%clk 0:02:44.8]} 15... g6
{[%clk 0:02:40.3]} 16. g4 {[%clk 0:02:40.8]} 16... Bg7 {[%clk 0:02:40]} 17. gxh5
{[%clk 0:02:38.7]} 17... Rxh5 {[%clk 0:02:39.2]} 18. Qg2 {[%clk 0:02:35.7]}
18... Nge7 {[%clk 0:02:37.8]} 19. Nf3 {[%clk 0:02:29.8]} 19... Nf5 {[%clk
0:02:36.9]} 20. Ng3 {[%clk 0:02:27.5]} 20... Nh4 {[%clk 0:02:35.3]} 21. Nxh4
{[%clk 0:02:22.7]} 21... Rxh4 {[%clk 0:02:35.5]} 22. Be3 {[%clk 0:01:47.5]}
22... cxd4 {[%clk 0:02:32.6]} 23. Bxd4 {[%clk 0:01:47.6]} 23... Nxd4 {[%clk
0:02:17]} 24. cxd4 {[%clk 0:01:48.5]} 24... O-O-O {[%clk 0:02:16.2]} 25. a5
{[%clk 0:01:37.3]} 25... b5 {[%clk 0:02:15]} 26. Rac1+ {[%clk 0:01:37.2]} 26...
Kb7 {[%clk 0:02:15.3]} 27. Rc5 {[%clk 0:01:37]} 27... Bf8 {[%clk 0:02:11.3]} 28.
Rc2 {[%clk 0:01:32.5]} 28... Rc8 {[%clk 0:02:08.9]} 29. Rfc1 {[%clk 0:01:13.5]}
29... Rxc2 {[%clk 0:02:07.5]} 30. Qxc2 {[%clk 0:01:09.1]} 30... Bb4 {[%clk
0:02:05.3]} 31. Ne2 {[%clk 0:00:58.6]} 31... Bxa5 {[%clk 0:02:01]} 32. Qc5
{[%clk 0:00:57.2]} 32... Rh8 {[%clk 0:01:49]} 33. Ng3 {[%clk 0:00:15.5]} 33...
Bb6 {[%clk 0:01:47.4]} 34. Qb4 {[%clk 0:00:13.4]} 34... Rh4 {[%clk 0:01:21.6]}
35. Ne2 {[%clk 0:00:10.2]} 35... Rh8 {[%clk 0:01:08.6]} 36. Kg2 {[%clk
0:00:05.7]} 36... Qd8 {[%clk 0:01:01]} 37. Qc3 {[%clk 0:00:02.9]} 37... Qd7
{[%clk 0:00:52.4]} 38. Qb3 {[%clk 0:00:01.7]} 38... Qe7 {[%clk 0:00:39.5]} 39.
Qc3 {[%clk 0:00:01.4]} 39... Qe8 {[%clk 0:00:34.5]} 40. b3 {[%clk 0:00:01.9]}
40... Qd7 {[%clk 0:00:31.6]} 41. Ng3 {[%clk 0:00:01.8]} 41... Rh4 {[%clk
0:00:20.3]} 42. Ne2 {[%clk 0:00:02.1]} 42... Rh8 {[%clk 0:00:13.1]} 43. Rc2
{[%clk 0:00:02.5]} 43... Rc8 {[%clk 0:00:13]} 44. Qxc8+ {[%clk 0:00:02.1]} 44...
Qxc8 {[%clk 0:00:13.3]} 45. Rxc8 {[%clk 0:00:02.7]} 45... Kxc8 {[%clk
0:00:13.7]} 46. Kf3 {[%clk 0:00:03.6]} 46... a5 {[%clk 0:00:12.4]} 47. Ke3
{[%clk 0:00:04.2]} 47... Kb7 {[%clk 0:00:11.6]} 48. Kd3 {[%clk 0:00:04.3]} 48...
Ka6 {[%clk 0:00:11.9]} 49. Kc3 {[%clk 0:00:04.7]} 49... Bd8 {[%clk 0:00:10.6]}
50. Nc1 {[%clk 0:00:02.5]} 50... Bh4 {[%clk 0:00:09.2]} 51. Nd3 {[%clk
0:00:03.1]} 51... Be7 {[%clk 0:00:07.7]} 52. Kc2 {[%clk 0:00:03]} 52... a4
{[%clk 0:00:06.5]} 53. Kb2 {[%clk 0:00:03.1]} 53... Ka5 {[%clk 0:00:06.5]} 54.
Kc2 {[%clk 0:00:02.2]} 54... Bb4 {[%clk 0:00:06.4]} 55. Kb2 {[%clk 0:00:02.4]}
55... a3+ {[%clk 0:00:06]} 56. Ka2 {[%clk 0:00:02.7]} 56... Bc3 {[%clk
0:00:05.4]} 57. Kb1 {[%clk 0:00:02.4]} 57... Bxd4 {[%clk 0:00:05.1]} 58. Ka2
{[%clk 0:00:02.4]} 58... Ka6 {[%clk 0:00:03.7]} 59. Kxa3 {[%clk 0:00:02.6]}
59... Kb6 {[%clk 0:00:03.5]} 60. Kb4 {[%clk 0:00:03.1]} 60... Be3 {[%clk
0:00:02.6]} 61. Kc3 {[%clk 0:00:03.2]} 61... Kc6 {[%clk 0:00:02]} 62. Nb4+
{[%clk 0:00:02.8]} 62... Kb6 {[%clk 0:00:02.6]} 63. Nd3 {[%clk 0:00:03.7]} 63...
Kc6 {[%clk 0:00:02.8]} 64. Ne1 {[%clk 0:00:04.3]} 64... Bxf4 {[%clk 0:00:02.3]}
65. Nd3 {[%clk 0:00:05.2]} 65... Bxh2 {[%clk 0:00:02.4]} 66. Nb4+ {[%clk
0:00:06.1]} 66... Kc5 {[%clk 0:00:02.4]} 67. Nd3+ {[%clk 0:00:07]} 67... Kb6
{[%clk 0:00:02.9]} 68. b4 {[%clk 0:00:07.9]} 68... Bg3 {[%clk 0:00:03.1]} 69.
Kd4 {[%clk 0:00:07.7]} 69... g5 {[%clk 0:00:03.1]} 70. Ke3 {[%clk 0:00:08.6]}
70... Bf4+ {[%clk 0:00:02.1]} 71. Kf3 {[%clk 0:00:09.5]} 71... Bd2 {[%clk
0:00:01.9]} 72. Kg4 {[%clk 0:00:10.4]} 72... Kc6 {[%clk 0:00:01.7]} 73. Kh5
{[%clk 0:00:11.3]} 73... Kd7 {[%clk 0:00:02.2]} 74. Kh6 {[%clk 0:00:12.2]} 74...
Ke7 {[%clk 0:00:02.7]} 75. Nc5 {[%clk 0:00:12.4]} 75... g4+ {[%clk 0:00:02.6]}
76. Kh5 {[%clk 0:00:12.4]} 76... g3 {[%clk 0:00:03.3]} 77. Nd3 {[%clk
0:00:12.6]} 77... g2 {[%clk 0:00:03.3]} 0-1